bitfinex-derivatives/quotes_BTCF0:USTF0_20250709
["timestamp","ask_amount","ask_price","bid_price","bid_amount"]
[1752100828966,0.0415355,111380.0,111370.0,0.80446572]
[1752100829463,0.0415355,111380.0,111370.0,0.79446572]
[1752100829664,0.2210385,111380.0,111370.0,0.80446572]
[1752100830060,0.2210385,111380.0,111370.0,0.83556572]
[1752100830869,0.2210385,111380.0,111370.0,0.86706572]
[1752100831563,0.0415355,111380.0,111370.0,0.86706572]
[1752100832969,0.0256555,111380.0,111370.0,0.86706572]
[1752100833369,0.0246555,111380.0,111370.0,0.86706572]
[1752100833570,0.0236555,111380.0,111370.0,0.86706572]
[1752100833964,0.2031585,111380.0,111370.0,0.86706572]
[1752100834165,0.0236555,111380.0,111370.0,0.86706572]
[1752100834767,0.0236555,111380.0,111370.0,0.86706356]
[1752100835371,0.0236555,111380.0,111370.0,0.87706356]
[1752100836175,0.2031585,111380.0,111370.0,0.87706356]
[1752100836378,0.2031585,111380.0,111370.0,0.86706356]
[1752100837273,0.2190385,111380.0,111370.0,0.62695019]
[1752100837473,0.48255665,111380.0,111370.0,0.40218182]
[1752100837678,1.16613665,111380.0,111370.0,0.58170092]
[1752100837871,0.92602337,111380.0,111370.0,0.58170172]
[1752100838678,0.92602337,111380.0,111370.0,0.40218262]
[1752100838980,0.92731337,111380.0,111370.0,0.6422959]
[1752100839182,0.92731337,111380.0,111370.0,0.40218262]
[1752100839976,1.16742665,111380.0,111370.0,0.40218262]
[1752100840480,1.16742665,111380.0,111370.0,0.58170172]
[1752100840677,1.16742665,111380.0,111370.0,0.40218262]
[1752100841079,1.16742665,111380.0,111370.0,0.39483189]
[1752100841380,1.17010665,111380.0,111370.0,0.39483189]
[1752100841973,0.92999337,111380.0,111370.0,0.39483189]
[1752100842381,1.20209687,111380.0,111370.0,0.39483189]
[1752100842681,1.17010665,111380.0,111370.0,0.39483189]
[1752100843277,1.20209687,111380.0,111370.0,0.39483189]
[1752100843481,1.18637687,111380.0,111370.0,0.39483189]
[1752100844577,1.18637687,111380.0,111370.0,0.37483189]
[1752100844782,1.18637687,111380.0,111370.0,0.38483189]
[1752100844983,1.36595287,111380.0,111370.0,0.38483189]
[1752100845579,0.1795191,111370.0,111360.0,0.3608]
[1752100845882,0.1795191,111370.0,111350.0,0.3608]
[1752100845883,0.19848483,111360.0,111350.0,0.3608]
[1752100846086,1.16989811,111360.0,111350.0,0.31]
[1752100846279,1.53069811,111360.0,111350.0,0.31]
[1752100846476,0.30490483,111360.0,111350.0,0.31]
[1752100846677,1.20186795,111360.0,111350.0,0.31]
[1752100846984,0.1795513,111350.0,111340.0,0.5852581]
[1752100847174,1.15084458,111350.0,111340.0,0.90851715]
[1752100847371,1.18296739,111350.0,111340.0,0.90851715]
[1752100848182,0.94285411,111350.0,111340.0,0.91051715]
[1752100848488,0.94297411,111350.0,111340.0,0.91051715]
[1752100848687,0.94297411,111350.0,111340.0,0.94281715]
[1752100849282,0.94297411,111350.0,111340.0,0.94481715]
[1752100850482,0.94297411,111350.0,111340.0,1.01481715]
[1752100851586,0.94297411,111350.0,111340.0,0.94481715]
[1752100851902,0.95213649,111350.0,111340.0,0.94481715]
[1752100852585,1.02454183,111350.0,111340.0,0.94481715]
[1752100852780,1.26465511,111350.0,111340.0,0.89992545]
[1752100853287,1.26465511,111350.0,111340.0,0.72035905]
[1752100853586,1.26433511,111350.0,111340.0,0.32725905]
[1752100855188,1.26533511,111350.0,111340.0,0.35525905]
[1752100855390,1.61041511,111350.0,111340.0,0.35525905]
[1752100856082,1.61041511,111350.0,111340.0,0.39525905]
[1752100856991,1.61141511,111350.0,111340.0,0.39325905]
[1752100857591,1.61141511,111350.0,111340.0,0.40729738]
[1752100858497,1.61141511,111350.0,111340.0,0.39325905]
[1752100858688,0.1795836,111330.0,111320.0,0.03319654]
[1752100858885,1.73768023,111330.0,111320.0,0.14583607]
[1752100859194,1.79832023,111330.0,111320.0,0.14583607]
[1752100859396,1.17236023,111330.0,111320.0,0.14583607]
[1752100859690,1.79828023,111330.0,111320.0,0.14583607]
[1752100859895,1.79828023,111330.0,111320.0,0.13179654]
[1752100860196,1.80028023,111330.0,111320.0,0.13179654]
[1752100860894,1.80028023,111330.0,111320.0,0.31179654]
[1752100861092,1.88017029,111330.0,111320.0,0.31179654]
[1752100861595,1.80028023,111330.0,111320.0,0.31179654]
[1752100861903,1.88017029,111330.0,111320.0,0.34179654]
[1752100862393,1.80028023,111330.0,111320.0,0.34179654]
[1752100862589,0.81356023,111330.0,111320.0,0.34179654]
[1752100862785,0.27293367,111330.0,111320.0,0.88219624]
[1752100862994,0.27193367,111330.0,111320.0,1.18440952]
[1752100863195,0.87319367,111330.0,111320.0,1.18440952]
[1752100863694,0.90009367,111330.0,111320.0,0.94429624]
[1752100864186,0.89709367,111330.0,111320.0,0.94429624]
[1752100864992,0.27293367,111330.0,111320.0,0.94429624]
[1752100865191,0.87399367,111330.0,111320.0,0.60429624]
[1752100865389,0.87399367,111330.0,111320.0,0.91429624]
[1752100865587,0.89889367,111330.0,111320.0,0.91429624]
[1752100865793,0.89689367,111330.0,111320.0,0.91429624]
[1752100865993,0.27093367,111330.0,111320.0,0.91429624]
[1752100866197,0.89693367,111330.0,111320.0,0.91429624]
[1752100866589,0.89693367,111330.0,111320.0,0.96429624]
[1752100866791,0.27093367,111330.0,111320.0,0.96429624]
[1752100866986,0.23031367,111330.0,111320.0,0.96429624]
[1752100867188,0.24603367,111330.0,111320.0,0.96429624]
[1752100867699,0.87187367,111330.0,111320.0,1.26391959]
[1752100868397,0.24603367,111330.0,111320.0,0.96429624]
[1752100868599,0.87183367,111330.0,111320.0,0.96429624]
[1752100869603,0.87171367,111330.0,111320.0,0.96429624]
[1752100870003,0.87171367,111330.0,111320.0,0.95429624]
[1752100870295,0.87171367,111330.0,111320.0,1.25391959]
[1752100870495,0.24603367,111330.0,111320.0,1.25391959]
[1752100870702,0.24603367,111330.0,111320.0,1.26715592]
[1752100870898,0.05073007,111330.0,111320.0,1.26715592]
[1752100871099,0.03212281,111330.0,111320.0,1.59677927]
[1752100871298,0.894643,111340.0,111330.0,0.1795836]
[1752100871498,0.92836542,111340.0,111330.0,1.25514328]
[1752100871707,0.88347322,111340.0,111330.0,1.25514328]
[1752100872206,0.88347322,111340.0,111330.0,1.25500436]
[1752100872406,0.88347322,111340.0,111330.0,1.24390695]
[1752100872904,0.88347322,111340.0,111330.0,1.24490695]
[1752100873101,0.65932242,111340.0,111330.0,1.25543467]
[1752100873299,0.03372242,111340.0,111330.0,1.24490695]
[1752100873703,0.03372242,111340.0,111330.0,1.88111414]
[1752100873902,0.21328992,111340.0,111330.0,1.88111414]
[1752100874107,0.03372242,111340.0,111330.0,1.88111414]
[1752100874806,0.21328992,111340.0,111330.0,1.92111414]
[1752100875009,0.03372242,111340.0,111330.0,1.92111414]
[1752100875208,0.21328992,111340.0,111330.0,1.92111414]
[1752100875707,0.21328992,111340.0,111330.0,1.93016965]
[1752100876105,0.21328992,111340.0,111330.0,1.87016965]
[1752100876303,0.03372242,111340.0,111330.0,2.04980965]
[1752100877009,0.03372242,111340.0,111330.0,1.87016965]
[1752100879110,0.21328992,111340.0,111330.0,1.86111414]
[1752100879913,0.1795675,111340.0,111330.0,1.87002032]
[1752100880106,0.1795675,111340.0,111330.0,1.57002032]
[1752100880304,0.1795675,111340.0,111330.0,1.55002032]
[1752100880510,0.1795675,111340.0,111330.0,1.54111414]
[1752100884611,0.1795675,111340.0,111330.0,1.54111388]
[1752100884811,0.1795675,111340.0,111330.0,1.48106525]
[1752100885211,0.1795675,111340.0,111330.0,1.72063997]
[1752100886208,0.38663804,111350.0,111340.0,0.1795675]
[1752100886411,0.43734297,111350.0,111340.0,0.84354222]
[1752100886809,0.12311027,111350.0,111340.0,0.84354222]
[1752100887113,0.30266157,111350.0,111340.0,0.84354222]
[1752100889422,0.23025623,111350.0,111340.0,0.84354222]
[1752100890914,0.03468493,111350.0,111340.0,0.84354222]
[1752100891114,0.03468493,111350.0,111340.0,0.84454222]
[1752100891614,1.01341393,111360.0,111350.0,0.1795513]
[1752100891817,1.04809332,111360.0,111350.0,0.84342602]
[1752100892616,1.04809332,111360.0,111350.0,0.6038513]
[1752100892818,1.04809332,111360.0,111350.0,0.84342602]
[1752100894410,1.00320602,111360.0,111350.0,0.84342602]
[1752100896619,0.38012602,111360.0,111350.0,0.84342602]
[1752100896808,1.01854602,111360.0,111350.0,0.84342602]
[1752100897812,1.04974602,111360.0,111350.0,0.84342602]
[1752100898519,1.04974602,111360.0,111350.0,0.81102602]
[1752100899415,1.04974602,111360.0,111350.0,0.77992602]
[1752100901422,1.04981286,111360.0,111350.0,0.77992602]
[1752100904326,1.28938758,111360.0,111350.0,0.5403513]
[1752100904622,0.66698758,111360.0,111350.0,0.5403513]
[1752100904820,1.28830758,111360.0,111350.0,0.5403513]
[1752100905021,1.04873286,111360.0,111350.0,0.3608]
[1752100905223,1.04873286,111360.0,111350.0,0.5403513]
[1752100906522,1.12862292,111360.0,111350.0,0.5403513]
[1752100911824,1.12862292,111360.0,111350.0,0.3608]
[1752100912428,1.12862292,111360.0,111350.0,0.5403519]
[1752100912928,1.13062292,111360.0,111350.0,0.5403519]
[1752100913528,1.05073286,111360.0,111350.0,0.5403519]
[1752100918133,1.13062292,111360.0,111350.0,0.5403519]
[1752100924738,1.05073286,111360.0,111350.0,0.5403519]
[1752100925530,1.01023286,111360.0,111350.0,0.3608]
[1752100925730,1.27044758,111360.0,111350.0,0.3608]
[1752100925930,1.27064758,111360.0,111350.0,0.5403518]
[1752100926533,1.03107286,111360.0,111350.0,0.5403518]
[1752100926738,1.27064758,111360.0,111350.0,0.5403518]
[1752100926938,1.27187696,111360.0,111350.0,0.5403518]
[1752100927840,1.27187696,111360.0,111350.0,0.3608]
[1752100928043,1.27187696,111360.0,111350.0,0.5403518]
[1752100928448,1.27187696,111360.0,111350.0,0.3608]
[1752100929245,1.27285696,111360.0,111350.0,0.3608]
[1752100929446,1.27285696,111360.0,111350.0,0.5403518]
[1752100930445,1.35274702,111360.0,111350.0,0.5403518]
[1752100930648,1.27285696,111360.0,111350.0,0.5403518]
[1752100931846,1.35274702,111360.0,111350.0,0.5403518]
[1752100932148,1.35274702,111360.0,111350.0,0.3608]
[1752100932847,1.35274702,111360.0,111350.0,0.5403518]
[1752100933742,1.35274702,111360.0,111350.0,0.3608]
[1752100935448,0.73322702,111360.0,111350.0,0.3608]
[1752100935745,0.74946702,111360.0,111350.0,0.3608]
[1752100935948,1.36822702,111360.0,111350.0,0.3608]
[1752100936448,1.36822702,111360.0,111350.0,0.5403518]
[1752100937149,1.1286523,111360.0,111350.0,0.5403518]
[1752100937350,1.1286523,111360.0,111350.0,0.5715518]
[1752100937545,1.1286523,111360.0,111350.0,0.6025518]
[1752100938939,0.74945027,111360.0,111350.0,0.84210977]
[1752100939144,1.30507027,111360.0,111350.0,0.84210977]
[1752100939447,1.28883027,111360.0,111350.0,0.84210977]
[1752100940544,1.28883027,111360.0,111350.0,0.66255797]
[1752100940950,1.0492723,111360.0,111350.0,0.6025518]
[1752100942254,1.0492723,111360.0,111350.0,0.423]
[1752100944361,1.0819723,111360.0,111350.0,0.423]
[1752100944860,1.3215383,111360.0,111350.0,0.423]
[1752100945756,0.7020183,111360.0,111350.0,0.423]
[1752100945962,0.98498224,111360.0,111350.0,0.61307861]
[1752100948364,0.98498224,111360.0,111350.0,0.43352681]
[1752100949667,0.98498224,111360.0,111350.0,0.40252681]
[1752100950165,1.04818224,111360.0,111350.0,0.40252681]
[1752100950865,1.28774824,111360.0,111350.0,0.40252681]
[1752100951063,1.04818224,111360.0,111350.0,0.40252681]
[1752100951671,1.04818224,111360.0,111350.0,0.58207861]
[1752100951872,0.98498224,111360.0,111350.0,0.61367861]
[1752100955170,1.0648723,111360.0,111350.0,0.6031518]
[1752100957073,1.0648723,111360.0,111350.0,0.4236]
[1752100957273,1.3349383,111360.0,111350.0,0.4236]
[1752100957458,1.3349383,111360.0,111350.0,0.3608]
[1752100957662,1.3675383,111360.0,111350.0,0.3608]
[1752100959471,0.1795518,111350.0,111340.0,0.6025603]
[1752100959772,0.25639741,111350.0,111340.0,0.61308737]
[1752100960272,0.32869415,111350.0,111340.0,0.85265337]
[1752100960664,0.32869415,111350.0,111340.0,0.85465337]
[1752100960865,0.56827722,111350.0,111340.0,1.09425351]
[1752100961170,0.56827722,111350.0,111340.0,0.61508737]
[1752100961366,0.56827722,111350.0,111340.0,1.09425351]
[1752100961566,0.56827722,111350.0,111340.0,0.85467044]
[1752100962274,0.56827722,111350.0,111340.0,0.84414337]
[1752100963174,0.56827722,111350.0,111340.0,0.84415097]
[1752100964074,0.56827722,111350.0,111340.0,0.85467799]
[1752100964473,0.32869415,111350.0,111340.0,0.84415097]
[1752100964671,0.56827722,111350.0,111340.0,0.84415097]
[1752100964873,1.18963722,111350.0,111340.0,1.08373404]
[1752100965172,1.18963722,111350.0,111340.0,0.84415097]
[1752100965975,1.18963722,111350.0,111340.0,1.08373404]
[1752100966574,0.30646816,111350.0,111340.0,1.08373404]
[1752100966881,0.92786816,111350.0,111340.0,1.09426083]
[1752100967473,0.94440816,111350.0,111340.0,1.09426083]
[1752100969274,0.32300816,111350.0,111340.0,1.09426083]
[1752100969474,0.94428816,111350.0,111340.0,1.09426083]
[1752100969670,0.94416816,111350.0,111340.0,1.09426083]
[1752100971275,0.96849816,111350.0,111340.0,1.09426083]
[1752100974173,0.96849816,111350.0,111340.0,0.61509469]
[1752100974373,0.96849816,111350.0,111340.0,1.09426083]
[1752100975180,0.96849816,111350.0,111340.0,1.09426065]
[1752100976179,0.96849816,111350.0,111340.0,1.10819422]
[1752100984082,0.97096309,111350.0,111340.0,0.62902808]
[1752100984286,0.97096309,111350.0,111340.0,1.10819422]
[1752100985987,0.97096309,111350.0,111340.0,1.10819441]
[1752100986180,0.93252255,111350.0,111340.0,1.10819441]
[1752100986585,0.97096284,111350.0,111340.0,1.10819441]
[1752100989288,0.97096284,111350.0,111340.0,0.62902827]
[1752100989589,0.97096284,111350.0,111340.0,1.10819441]
[1752100989779,0.08082083,111360.0,111350.0,0.1795518]
[1752100989980,0.2405042,111360.0,111350.0,0.86579524]
[1752100990182,0.2636842,111360.0,111350.0,0.88312246]
[1752100992086,0.2636842,111360.0,111350.0,0.64353939]
[1752100992286,0.2636842,111360.0,111350.0,0.88312246]
[1752100992692,0.50526727,111360.0,111350.0,0.88312246]
[1752100994991,0.50526727,111360.0,111350.0,0.8832234]
[1752100995491,0.76384883,111360.0,111350.0,0.40268853]
[1752100995787,1.76559273,111360.0,111350.0,0.01403451]
[1752100995994,2.12639273,111360.0,111350.0,0.01403451]
[1752100996184,1.88680966,111360.0,111350.0,0.01403451]
[1752100996494,1.88676627,111360.0,111350.0,0.02718931]
[1752100996796,1.80598883,111360.0,111350.0,0.02718539]
[1752100998884,1.8867395,111360.0,111350.0,0.02718539]
[1752100999089,1.80598883,111360.0,111350.0,0.02718539]
[1752100999292,1.88673118,111360.0,111350.0,0.02718539]
[1752100999890,0.90609118,111360.0,111350.0,0.02718539]
[1752101000095,1.88701118,111360.0,111350.0,0.02718539]
[1752101000397,1.80626883,111360.0,111350.0,0.01403451]
[1752101000789,1.80626883,111360.0,111350.0,0.02720027]
[1752101001190,1.88699806,111360.0,111350.0,0.02720027]
[1752101001393,1.26687806,111360.0,111350.0,0.02720027]
[1752101001587,1.88691806,111360.0,111350.0,0.02720027]
[1752101001793,1.92557163,111360.0,111350.0,0.02720027]
[1752101002997,1.8448424,111360.0,111350.0,0.01403451]
[1752101003195,0.179568,111340.0,111330.0,0.97943727]
[1752101003395,0.179568,111340.0,111330.0,1.01663693]
[1752101003396,1.11270689,111340.0,111330.0,1.01663693]
[1752101003596,1.13588689,111340.0,111330.0,1.01663693]
[1752101004302,1.13588689,111340.0,111330.0,1.01863693]
[1752101004602,1.13588689,111340.0,111330.0,1.02063693]
[1752101004797,1.13576689,111340.0,111330.0,1.02063693]
[1752101004990,1.13576689,111340.0,111330.0,0.99343727]
[1752101005194,1.13576689,111340.0,111330.0,1.02063605]
[1752101006004,1.13576689,111340.0,111330.0,1.03063605]
[1752101006502,1.13576689,111340.0,111330.0,1.03063074]
[1752101007604,0.89618382,111340.0,111330.0,1.01747461]
[1752101009500,0.89618382,111340.0,111330.0,1.00747461]
[1752101010605,0.89618382,111340.0,111330.0,1.01800228]
[1752101010606,1.13576689,111340.0,111330.0,1.01800228]
[1752101010810,1.13576689,111340.0,111330.0,0.98623709]
[1752101011001,0.92768382,111340.0,111330.0,0.98623709]
[1752101011805,0.93649361,111340.0,111330.0,0.98623709]
[1752101012109,1.17607668,111340.0,111330.0,0.98623709]
[1752101012910,1.17607668,111340.0,111330.0,0.9862374]
[1752101015321,1.17607668,111340.0,111330.0,0.74665433]
[1752101015712,1.17607668,111340.0,111330.0,0.9862374]
[1752101016017,1.17607668,111340.0,111330.0,0.9962374]
[1752101019221,1.17607668,111340.0,111330.0,0.6354374]
[1752101019522,1.17607668,111340.0,111330.0,0.9762374]
[1752101019821,1.17607668,111340.0,111330.0,0.9962374]
[1752101020723,1.14457668,111340.0,111330.0,0.98570973]
[1752101022625,1.14457668,111340.0,111330.0,0.94081463]
[1752101028629,1.14457668,111340.0,111330.0,0.94090244]
[1752101029928,1.14341668,111340.0,111330.0,0.92686479]
[1752101030130,1.14341668,111340.0,111330.0,0.94090218]
[1752101030531,1.14341668,111340.0,111330.0,0.94090223]
[1752101032034,0.52477668,111340.0,111330.0,0.94090223]
[1752101032233,1.14341668,111340.0,111330.0,0.94090223]
[1752101032424,0.50922668,111340.0,111330.0,0.94090223]
[1752101032624,1.14362668,111340.0,111330.0,0.94090223]
[1752101032820,1.17542668,111340.0,111330.0,0.94090223]
[1752101033626,0.55678668,111340.0,111330.0,0.94090223]
[1752101033922,1.17538668,111340.0,111330.0,0.94090223]
[1752101034123,1.17538668,111340.0,111330.0,0.92090223]
[1752101035925,1.13591668,111340.0,111330.0,0.92090223]
[1752101036124,1.13591668,111340.0,111330.0,0.84410883]
[1752101036125,1.15962668,111340.0,111330.0,0.84410883]
[1752101036340,1.15962668,111340.0,111330.0,0.66453823]
[1752101036627,1.19202668,111340.0,111330.0,0.42495516]
[1752101036933,1.43160975,111340.0,111330.0,0.39205516]
[1752101037329,1.43160975,111340.0,111330.0,0.57163916]
[1752101037534,1.51232,111340.0,111330.0,0.81122223]
[1752101037924,1.27273693,111340.0,111330.0,0.81122223]
[1752101038133,1.51232,111340.0,111330.0,0.81122223]
[1752101039236,1.51232,111340.0,111330.0,0.81122275]
[1752101041625,1.51232,111340.0,111330.0,0.57163968]
[1752101042443,0.89372,111340.0,111330.0,0.57163968]
[1752101042638,1.52804,111340.0,111330.0,0.57163968]
[1752101044242,1.52804,111340.0,111330.0,0.57163983]
[1752101044437,1.52804,111340.0,111330.0,0.39205583]
[1752101044637,1.52804,111340.0,111330.0,0.57163983]
[1752101045741,1.52804,111340.0,111330.0,0.8112229]
[1752101046043,1.52804,111340.0,111330.0,0.39205583]
[1752101046343,1.44732975,111340.0,111330.0,0.40258463]
[1752101046542,1.44732975,111340.0,111330.0,0.58216863]
[1752101046744,0.96816361,111340.0,111330.0,0.58216863]
[1752101046943,0.82876975,111340.0,111330.0,0.58216863]
[1752101047242,1.44728975,111340.0,111330.0,0.58216863]
[1752101047539,1.44728975,111340.0,111330.0,0.40258463]
[1752101049642,0.1796001,111320.0,111310.0,0.3625967]
[1752101049843,1.37350312,111320.0,111310.0,0.3625967]
[1752101050042,1.43630312,111320.0,111310.0,0.3625967]
[1752101050240,1.5170512,111320.0,111310.0,0.0017967]
[1752101050541,1.79710312,111320.0,111310.0,0.0017967]
[1752101050945,1.90486423,111320.0,111310.0,0.0067967]
[1752101051337,1.87780416,111320.0,111310.0,0.0067967]
[1752101052834,1.87780416,111320.0,111310.0,0.0097967]
[1752101052835,1.51700416,111320.0,111310.0,0.0097967]
[1752101053040,1.86275416,111320.0,111310.0,0.0097967]
[1752101055347,1.38358802,111320.0,111310.0,0.0097967]
[1752101055543,1.86275416,111320.0,111310.0,0.0097967]
[1752101058351,1.78205312,111320.0,111310.0,0.0097967]
[1752101064249,1.78205312,111320.0,111310.0,0.0416967]
[1752101064954,1.78205312,111320.0,111310.0,0.0739967]
[1752101065551,1.10073312,111320.0,111310.0,0.0739967]
[1752101065752,1.10073312,111320.0,111310.0,0.62788741]
[1752101065753,0.23713698,111320.0,111310.0,0.62788741]
[1752101065947,1.13396005,111320.0,111310.0,0.86745496]
[1752101066148,0.07258688,111320.0,111310.0,0.88133109]
[1752101066451,0.87074698,111320.0,111310.0,0.88133185]
[1752101066651,0.85186377,111320.0,111310.0,0.88133185]
[1752101066851,0.05370357,111320.0,111310.0,0.98141427]
[1752101067052,0.03865357,111320.0,111310.0,0.98141427]
[1752101067245,0.83677377,111320.0,111310.0,0.98141427]
[1752101068056,0.21825377,111320.0,111310.0,0.98141427]
[1752101068257,0.03865357,111320.0,111310.0,0.98141427]
[1752101068455,0.9328156,111330.0,111320.0,0.1796002]
[1752101068658,0.98720435,111330.0,111320.0,0.87120147]
[1752101068846,0.97215435,111330.0,111320.0,0.87120147]
[1752101069458,0.97215435,111330.0,111320.0,0.87316293]
[1752101069859,0.98720435,111330.0,111320.0,0.87316293]
[1752101070557,0.97215435,111330.0,111320.0,0.87316293]
[1752101070758,0.97215435,111330.0,111320.0,0.89045123]
[1752101071256,1.01083435,111330.0,111320.0,0.88569856]
[1752101071446,0.97215435,111330.0,111320.0,0.88569856]
[1752101071649,0.99578435,111330.0,111320.0,0.88569856]
[1752101071844,0.24256665,111330.0,111320.0,0.88569856]
[1752101072053,0.86104665,111330.0,111320.0,0.88569856]
[1752101072255,0.83740275,111330.0,111320.0,0.87223967]
[1752101072455,0.65781875,111330.0,111320.0,0.87223967]
[1752101072759,0.65781875,111330.0,111320.0,0.97223967]
[1752101072954,0.83740275,111330.0,111320.0,1.0452545]
[1752101073158,0.85245275,111330.0,111320.0,1.0452545]
[1752101073959,0.85245275,111330.0,111320.0,1.0482545]
[1752101074358,0.23397275,111330.0,111320.0,1.0482545]
[1752101079165,0.23397275,111330.0,111320.0,1.0587829]
[1752101079364,0.25835275,111330.0,111320.0,1.0587829]
[1752101081971,0.25835275,111330.0,111320.0,1.4195829]
[1752101082471,0.25797863,111330.0,111320.0,1.4195829]
[1752101082866,0.23359863,111330.0,111320.0,1.4195829]
[1752101083264,0.05401463,111330.0,111320.0,1.4195829]
[1752101083969,0.23359863,111330.0,111320.0,1.4195829]
[1752101085871,0.23359863,111330.0,111320.0,1.4090545]
[1752101086078,0.03896463,111330.0,111320.0,1.4090545]
[1752101086971,0.01890225,111340.0,111330.0,0.179584]
[1752101087170,0.01890225,111340.0,111330.0,2.32013498]
[1752101088173,0.01890225,111340.0,111330.0,2.08246949]
[1752101088362,0.01890225,111340.0,111330.0,2.32213498]
[1752101088768,0.01890225,111340.0,111330.0,2.32193718]
[1752101089664,0.01890225,111340.0,111330.0,2.32293718]
[1752101090764,0.01890225,111340.0,111330.0,2.32293576]
[1752101092065,0.03440225,111340.0,111330.0,2.08336988]
[1752101095571,0.03440225,111340.0,111330.0,2.32293576]
[1752101096877,0.03440225,111340.0,111330.0,2.33346248]
[1752101097277,0.01890225,111340.0,111330.0,2.33346248]
[1752101098478,0.01890225,111340.0,111330.0,2.33346247]
[1752101098880,0.05710164,111340.0,111330.0,2.33346247]
[1752101099485,0.05710164,111340.0,111330.0,2.32293576]
[1752101100082,0.08270104,111370.0,111360.0,0.1795356]
[1752101100286,0.002,111370.0,111360.0,2.61638736]
[1752101100483,0.0315,111380.0,111370.0,0.1795195]
[1752101100679,0.0315,111380.0,111370.0,0.81048538]
[1752101100880,0.0315,111380.0,111370.0,0.82451671]
[1752101101593,0.047,111380.0,111370.0,0.82451671]
[1752101102689,0.047,111380.0,111370.0,0.83348737]
[1752101102889,0.2275034,111380.0,111370.0,0.82451671]
[1752101103193,0.049,111380.0,111370.0,0.84850914]
[1752101103581,0.46806928,111380.0,111370.0,0.60894326]
[1752101103781,0.2585034,111380.0,111370.0,0.57834326]
[1752101104085,0.52244928,111380.0,111370.0,0.57834326]
[1752101104286,0.2828834,111380.0,111370.0,0.57834326]
[1752101105293,0.2828834,111380.0,111370.0,0.56782052]
[1752101105480,0.52244928,111380.0,111370.0,0.38830102]
[1752101106195,0.52244928,111380.0,111370.0,0.56782052]
[1752101106695,0.2828834,111380.0,111370.0,0.56782052]
[1752101106996,0.52244928,111380.0,111370.0,0.56782052]
[1752101107200,0.52244928,111380.0,111370.0,0.38830102]
[1752101109198,0.52244928,111380.0,111370.0,0.38862957]
[1752101111205,0.2828834,111380.0,111370.0,0.38862957]
[1752101111396,0.52244928,111380.0,111370.0,0.38862957]
[1752101111596,0.2828834,111380.0,111370.0,0.38862957]
[1752101111894,0.52244928,111380.0,111370.0,0.38862957]
[1752101112101,0.55936738,111380.0,111370.0,0.38862957]
[1752101120901,0.55936738,111380.0,111370.0,0.38866368]
[1752101121903,1.17712738,111380.0,111370.0,0.38866368]
[1752101123701,1.17712738,111380.0,111370.0,0.37483349]
[1752101123905,1.17712738,111380.0,111370.0,0.38867401]
[1752101127909,0.55936738,111380.0,111370.0,0.38867401]
[1752101128204,1.25778842,111380.0,111370.0,0.38867401]
[1752101128396,1.17708738,111380.0,111370.0,0.41917401]
[1752101129517,1.14016928,111380.0,111370.0,0.41917401]
[1752101129706,1.17650052,111380.0,111370.0,0.41917401]
[1752101130010,0.55878052,111380.0,111370.0,0.41917401]
[1752101130209,1.17650052,111380.0,111370.0,0.41917401]
[1752101131002,0.55878052,111380.0,111370.0,0.41910753]
[1752101131203,1.17650052,111380.0,111370.0,0.41910753]
[1752101131910,0.55878052,111380.0,111370.0,0.59862703]
[1752101132211,1.14646052,111380.0,111370.0,0.41910753]
[1752101133504,0.90689464,111380.0,111370.0,0.39123352]
[1752101133711,0.98759568,111380.0,111370.0,0.41909602]
[1752101134100,0.90689464,111380.0,111370.0,0.95941552]
[1752101134306,0.21783464,111380.0,111370.0,1.20950593]
[1752101134506,0.21783464,111380.0,111370.0,1.23990593]
[1752101134507,0.83551464,111380.0,111370.0,1.23990593]
[1752101134810,0.85084464,111380.0,111370.0,1.23990593]
[1752101135105,0.25683464,111380.0,111370.0,1.23990584]
[1752101135307,0.03833124,111380.0,111370.0,1.23990584]
[1752101135511,0.03833124,111380.0,111370.0,1.58990584]
[1752101135713,0.03833124,111380.0,111370.0,1.22587277]
[1752101136005,0.03831687,111380.0,111370.0,1.23990384]
[1752101136611,0.03731687,111380.0,111370.0,1.24090384]
[1752101136814,0.03631687,111380.0,111370.0,1.24090384]
[1752101137212,0.03631687,111380.0,111370.0,1.57090384]
[1752101138012,0.03631687,111380.0,111370.0,1.24090384]
[1752101138714,0.03631687,111380.0,111370.0,1.240598]
[1752101140214,0.03631687,111380.0,111370.0,1.580598]
[1752101140606,0.03631687,111380.0,111370.0,1.240598]
[1752101141215,0.2243632,111390.0,111380.0,0.1795034]
[1752101141415,0.26055667,111390.0,111380.0,0.88034838]
[1752101142211,0.03619347,111390.0,111380.0,0.86982577]
[1752101142413,0.03619347,111390.0,111380.0,0.88034822]
[1752101143618,0.21668077,111390.0,111380.0,0.88134822]
[1752101144003,0.2156657,111390.0,111380.0,0.88134822]
[1752101144319,0.0361784,111390.0,111380.0,0.88134822]
[1752101144616,0.0361784,111390.0,111380.0,0.89042487]
[1752101144815,0.2156656,111390.0,111380.0,0.89042487]
[1752101145609,0.2323056,111390.0,111380.0,0.89042487]
[1752101145816,0.2156656,111390.0,111380.0,0.89042487]
[1752101147318,0.2156656,111390.0,111380.0,2.12538487]
[1752101149606,0.0361784,111390.0,111380.0,2.12538487]
[1752101150220,0.0361784,111390.0,111380.0,2.1113538]
[1752101150522,0.0361784,111390.0,111380.0,2.12538329]
[1752101150720,0.2156657,111390.0,111380.0,2.12538329]
[1752101151821,0.37102563,111400.0,111390.0,0.1794873]
[1752101152015,1.04116401,111400.0,111390.0,0.83880809]
[1752101152409,1.06413401,111400.0,111390.0,0.83880809]
[1752101153021,1.06613401,111400.0,111390.0,0.83880809]
[1752101153214,1.06613401,111400.0,111390.0,0.83880742]
[1752101153413,0.44873401,111400.0,111390.0,0.83880742]
[1752101153619,1.06609401,111400.0,111390.0,0.83880742]
[1752101155422,0.44873401,111400.0,111390.0,0.83880742]
[1752101155612,1.06609401,111400.0,111390.0,0.83880742]
[1752101156122,1.06609401,111400.0,111390.0,0.83880784]
[1752101157923,1.06609401,111400.0,111390.0,0.59924196]
[1752101158119,1.09899401,111400.0,111390.0,0.83880784]
[1752101158421,1.09901387,111400.0,111390.0,0.83880784]
[1752101158926,1.3383946,111400.0,111390.0,0.83862269]
[1752101159224,1.09901387,111400.0,111390.0,0.83862269]
[1752101161424,0.48165387,111400.0,111390.0,0.83862269]
[1752101161616,1.09889387,111400.0,111390.0,0.82459345]
[1752101161816,1.09889387,111400.0,111390.0,0.83862298]
[1752101162426,1.09889387,111400.0,111390.0,0.84914513]
[1752101163427,1.09889387,111400.0,111390.0,0.83862298]
[1752101164214,0.11168937,111400.0,111390.0,1.41800371]
[1752101164416,0.06354937,111400.0,111390.0,1.4285253]
[1752101164618,0.06354937,111400.0,111390.0,1.1187253]
[1752101165029,0.06354937,111400.0,111390.0,1.4887253]
[1752101165429,0.06354937,111400.0,111390.0,1.5387253]
[1752101166027,0.06254937,111400.0,111390.0,1.5387253]
[1752101166426,0.06254937,111400.0,111390.0,1.5887253]
[1752101166923,0.06254937,111400.0,111390.0,1.5885273]
[1752101167316,0.00368876,111420.0,111410.0,0.1794551]